bitfinex/quotes_BTCUSD_20210402
["timestamp","ask_amount","ask_price","bid_price","bid_amount"]
[1617337755887,0.28283867,59642.0,59641.0,2.52010426]
[1617337756318,0.28283867,59642.0,59641.0,2.67710426]
[1617337756524,0.12753909,59642.0,59641.0,2.75837426]
[1617337756719,0.12753909,59642.0,59641.0,5.84837426]
[1617337756918,0.12753909,59642.0,59641.0,6.80137426]
[1617337757317,0.12753909,59642.0,59641.0,5.84837426]
[1617337757518,0.12753909,59642.0,59641.0,6.80137426]
[1617337757920,0.12753909,59642.0,59641.0,5.84837426]
[1617337758319,0.8250133,59642.0,59641.0,5.84837426]
[1617337758521,0.8250133,59642.0,59641.0,2.75837426]
[1617337758719,0.8250133,59642.0,59641.0,4.85837426]
[1617337758928,0.8250133,59642.0,59641.0,2.75837426]
[1617337759526,0.8250133,59642.0,59641.0,2.67710426]
[1617337759728,0.8250133,59642.0,59641.0,4.27710426]
[1617337760523,0.8200133,59642.0,59641.0,4.27710426]
[1617337761946,0.8200133,59642.0,59641.0,2.67710426]
[1617337762746,0.8200133,59642.0,59641.0,4.09710426]
[1617337763348,0.8200133,59642.0,59641.0,2.67710426]
[1617337763952,0.8200133,59642.0,59641.0,2.52010426]
[1617337764374,0.8200133,59642.0,59641.0,2.49010426]
[1617337764969,0.8200133,59642.0,59641.0,2.1989689]
[1617337765573,0.8200133,59642.0,59641.0,2.2289689]
[1617337765973,0.8200133,59642.0,59641.0,2.3899689]
[1617337766821,0.8200133,59642.0,59641.0,2.68110426]
[1617337767024,0.8200133,59642.0,59641.0,2.26832026]
[1617337767222,0.8200133,59642.0,59641.0,1.9471849]
[1617337769019,0.8200133,59642.0,59641.0,1.5685799]
[1617337769231,0.8200133,59642.0,59641.0,1.0085799]
[1617337769437,0.8700133,59642.0,59641.0,1.0085799]
[1617337769635,1.11538622,59642.0,59641.0,1.0085799]
[1617337769837,1.3477243,59642.0,59641.0,1.0085799]
[1617337770438,1.3977243,59642.0,59641.0,1.0085799]
[1617337770635,1.36227918,59642.0,59641.0,1.0085799]
[1617337770835,1.2073543,59642.0,59641.0,1.1585799]
[1617337772047,0.8200133,59642.0,59641.0,1.1885799]
[1617337772651,0.8200133,59642.0,59641.0,1.5754019]
[1617337773059,0.8200133,59642.0,59641.0,1.7284019]
[1617337773654,0.8200133,59642.0,59641.0,4.3884019]
[1617337773858,0.8200133,59642.0,59641.0,4.93130326]
[1617337774684,0.8200133,59642.0,59641.0,1.8271679]
[1617337774880,0.8200133,59642.0,59641.0,1.1880609]
[1617337775084,0.8200133,59642.0,59641.0,1.08924995]
[1617337775479,0.8200133,59642.0,59641.0,0.93924995]
[1617337775877,0.8200133,59642.0,59641.0,0.90924995]
[1617337776277,1.0718473,59642.0,59641.0,0.90924995]
[1617337776482,1.6141883,59642.0,59641.0,0.90924995]
[1617337776880,1.6900548,59642.0,59641.0,0.90924995]
[1617337777081,1.4591883,59642.0,59641.0,0.90924995]
[1617337777297,1.2073543,59642.0,59641.0,0.90924995]
[1617337778297,0.8200133,59642.0,59641.0,0.90924995]
[1617337778500,0.8200133,59642.0,59641.0,1.04424995]
[1617337778699,0.8200133,59642.0,59641.0,1.43159095]
[1617337780729,0.8200133,59642.0,59641.0,1.59059095]
[1617337780925,0.8200133,59642.0,59641.0,1.43159095]
[1617337781524,0.8200133,59642.0,59641.0,1.46159095]
[1617337782329,0.8200133,59642.0,59641.0,1.32659095]
[1617337782752,0.8200133,59642.0,59641.0,0.93924995]
[1617337783354,0.8200133,59642.0,59641.0,0.93424995]
[1617337783555,0.8200133,59642.0,59641.0,1.32159095]
[1617337783755,0.8200133,59642.0,59641.0,1.51659095]
[1617337784383,0.8200133,59642.0,59641.0,1.68059095]
[1617337784781,0.8200133,59642.0,59641.0,1.51659095]
[1617337786094,0.8150133,59642.0,59641.0,1.51659095]
[1617337787493,0.7111656,59642.0,59641.0,1.51659095]
[1617337788299,0.7111656,59642.0,59641.0,1.67859095]
[1617337788698,0.7111656,59642.0,59641.0,1.96972631]
[1617337789298,0.7061656,59642.0,59641.0,1.96972631]
[1617337789501,0.7061656,59642.0,59641.0,2.59972631]
[1617337789699,0.7061656,59642.0,59641.0,1.96972631]
[1617337789900,0.7061656,59642.0,59641.0,1.67859095]
[1617337790324,0.7061656,59642.0,59641.0,1.96972631]
[1617337791324,0.7061656,59642.0,59641.0,1.80772631]
[1617337791726,0.7061656,59642.0,59641.0,1.51659095]
[1617337792328,0.7061656,59642.0,59641.0,2.59659095]
[1617337792530,0.7061656,59642.0,59641.0,2.88772631]
[1617337792949,0.7061656,59642.0,59641.0,2.8855263]
[1617337793355,0.7061656,59642.0,59641.0,6.0145263]
[1617337793557,0.7061656,59642.0,59641.0,6.6363963]
[1617337793753,0.7061656,59642.0,59641.0,6.7363963]
[1617337794353,0.7061656,59642.0,59641.0,7.0863963]
[1617337794755,0.15543779,59646.0,59642.0,3.09]
[1617337794956,0.15546517,59647.0,59645.0,3.663341]
[1617337795163,0.166,59670.0,59658.0,0.162]
[1617337795358,0.166,59670.0,59659.0,0.2424498]
[1617337795578,0.166,59670.0,59659.0,0.43562377]
[1617337795779,0.08634654,59671.0,59663.0,0.251685]
[1617337795977,0.08634654,59671.0,59663.0,1.15452364]
[1617337796374,0.08634654,59671.0,59664.0,0.387341]
[1617337796573,0.08634654,59671.0,59664.0,1.12424995]
[1617337797774,0.08634654,59671.0,59667.0,0.65290195]
[1617337797975,0.08634654,59671.0,59667.0,0.45530817]
[1617337798397,0.08634654,59671.0,59667.0,0.40122995]
[1617337798995,0.08634654,59671.0,59667.0,0.39982495]
[1617337800423,0.08134654,59671.0,59667.0,0.39982495]
[1617337803247,0.08134654,59671.0,59668.0,0.17]
[1617337803452,0.08134654,59671.0,59668.0,0.56982495]
[1617337805060,0.08134654,59671.0,59669.0,0.295241]
[1617337805267,0.08134654,59671.0,59669.0,0.69506595]
[1617337805461,0.0509985,59671.0,59670.0,3.626]
[1617337805659,0.00303724,59681.0,59672.0,0.0046]
[1617337805860,0.00303724,59681.0,59672.0,1.48984476]
[1617337806495,0.00303724,59681.0,59675.0,0.251631]
[1617337806692,0.00303724,59681.0,59677.0,0.565]
[1617337806890,0.05044586,59682.0,59677.0,0.565]
[1617337807089,0.05044586,59682.0,59677.0,0.90284495]
[1617337807691,0.05044586,59682.0,59677.0,1.15445995]
[1617337808294,0.05044586,59682.0,59677.0,0.90284495]
[1617337810913,0.05044586,59682.0,59677.0,0.03352953]
[1617337811339,0.387176,59681.0,59677.0,0.03352953]
[1617337811537,0.09265017,59680.0,59677.0,0.03352953]
[1617337811740,0.121814,59679.0,59677.0,0.03352953]
[1617337812137,0.09265017,59680.0,59677.0,0.03352953]
[1617337812340,0.05044586,59682.0,59677.0,0.53623953]
[1617337812341,0.0926433,59678.0,59677.0,0.53623953]
[1617337812540,0.09264706,59681.0,59677.0,0.53623953]
[1617337812743,0.09259335,59678.0,59677.0,1.06345953]
[1617337813142,0.09260567,59678.0,59677.0,0.86590015]
[1617337813339,0.08902555,59681.0,59677.0,0.72590015]
[1617337814174,0.08902555,59681.0,59677.0,1.22861015]
[1617337814639,0.08902555,59681.0,59678.0,0.155]
[1617337814839,0.08902555,59681.0,59678.0,0.99639015]
[1617337815238,0.08902555,59681.0,59679.0,0.387176]
[1617337815640,0.08902555,59681.0,59680.0,0.31]
[1617337815842,0.08902555,59681.0,59680.0,1.05261044]
[1617337816704,0.08902555,59681.0,59680.0,0.84139015]
[1617337817103,0.08902555,59681.0,59680.0,0.83907664]
[1617337818304,0.08902555,59681.0,59680.0,1.22625264]
[1617337818705,0.08902555,59681.0,59680.0,1.12407664]
[1617337818905,0.08902555,59681.0,59680.0,1.51125264]
[1617337819924,0.08902555,59681.0,59680.0,1.80018799]
[1617337820121,0.08902555,59681.0,59680.0,1.41301199]
[1617337820521,0.08402555,59681.0,59680.0,1.41301199]
[1617337821122,0.08402555,59681.0,59680.0,1.12407664]
[1617337821322,0.08402555,59681.0,59680.0,1.41301199]
[1617337821521,0.08604852,59686.0,59680.0,1.12407664]
[1617337821723,0.08604852,59686.0,59681.0,0.335]
[1617337821938,0.08604852,59686.0,59681.0,1.17407664]
[1617337822538,0.08604852,59686.0,59681.0,2.12707664]
[1617337822746,0.08604852,59686.0,59685.0,3.249]
[1617337822946,0.08604852,59686.0,59685.0,3.92511135]
[1617337823141,0.08604852,59686.0,59685.0,4.33359093]
[1617337823540,0.08604852,59686.0,59685.0,5.22859093]
[1617337823740,0.08613995,59688.0,59685.0,5.25859093]
[1617337823941,0.08613995,59688.0,59687.0,3.337176]
[1617337824139,0.08613995,59688.0,59687.0,4.17625264]
[1617337824337,0.08613995,59688.0,59687.0,5.17625264]
[1617337824962,0.08613995,59688.0,59687.0,5.27625264]
[1617337825959,0.08613995,59688.0,59687.0,5.27879063]
[1617337826962,0.09360893,59688.0,59687.0,5.27879063]
[1617337828184,0.09360893,59688.0,59687.0,5.28538821]
[1617337829601,0.09360893,59688.0,59687.0,2.26538821]
[1617337829841,0.09360893,59688.0,59687.0,1.26538821]
[1617337830638,0.09360893,59688.0,59687.0,1.23538821]
[1617337831840,0.09360893,59688.0,59687.0,1.42638821]
[1617337832043,0.09360893,59688.0,59687.0,2.88638821]
[1617337832239,0.09360893,59688.0,59687.0,1.75638821]
[1617337832447,0.08860893,59688.0,59687.0,1.75638821]
[1617337834853,0.08860893,59688.0,59687.0,3.09638821]
[1617337835068,0.08860893,59688.0,59687.0,1.75638821]
[1617337835865,0.08860893,59688.0,59687.0,1.65763164]
[1617337837063,0.08860893,59688.0,59687.0,1.49663164]
[1617337837891,0.08860893,59688.0,59687.0,1.46663164]
[1617337838090,0.08860893,59688.0,59687.0,1.44050795]
[1617337839289,0.08860893,59688.0,59687.0,1.47050795]
[1617337839690,0.08860893,59688.0,59687.0,1.44050795]
[1617337840721,0.08860893,59688.0,59687.0,1.47050795]
[1617337841124,0.08860893,59688.0,59687.0,1.47614942]
[1617337841324,0.08860893,59688.0,59687.0,1.72770742]
[1617337843333,0.08860893,59688.0,59687.0,1.44614942]
[1617337846387,0.08860893,59688.0,59687.0,1.47614942]
[1617337847386,0.08860893,59688.0,59687.0,1.72771442]
[1617337848589,0.08860893,59688.0,59687.0,1.89071442]
[1617337849188,0.08860893,59688.0,59687.0,1.72771442]
[1617337850814,0.08860893,59688.0,59687.0,2.33771442]
[1617337851012,0.08860893,59688.0,59687.0,1.72771442]
[1617337851815,0.08860893,59688.0,59687.0,2.45271442]
[1617337852014,0.08860893,59688.0,59687.0,1.88271442]
[1617337852812,0.08860893,59688.0,59687.0,1.72771442]
[1617337853015,0.08360893,59688.0,59687.0,3.22771442]
[1617337853214,0.08360893,59688.0,59687.0,1.72771442]
[1617337854042,0.25155,59706.0,59687.0,1.72771442]
[1617337854043,0.004,59701.0,59689.0,0.335718]
[1617337854245,0.15520156,59715.0,59689.0,0.51875524]
[1617337854445,0.002,59708.0,59693.0,0.0352]
[1617337854641,0.002,59708.0,59694.0,0.59803724]
[1617337854843,0.002,59708.0,59699.0,0.0048]
[1617337855043,0.002,59708.0,59699.0,0.34116664]
[1617337855246,0.002,59708.0,59700.0,0.14]
[1617337855442,0.166,59714.0,59700.0,0.14]
[1617337855443,0.002,59713.0,59700.0,0.33636664]
[1617337856093,0.002,59713.0,59700.0,0.2376121]
[1617337856679,0.25155,59708.0,59700.0,0.2376121]
[1617337858484,0.002,59713.0,59700.0,0.2376121]
[1617337859780,0.002,59713.0,59700.0,0.24325178]
[1617337859979,0.002,59713.0,59701.0,0.145]
[1617337860179,0.002,59713.0,59701.0,0.2376121]
[1617337861190,0.002,59713.0,59702.0,0.251511]
[1617337861584,0.002,59713.0,59702.0,0.4891231]
[1617337861785,0.01748261,59712.0,59702.0,0.4891231]
[1617337862189,0.251538,59711.0,59702.0,0.2376121]
[1617337862391,0.387062,59708.0,59702.0,0.2376121]
[1617337862589,0.237691,59704.0,59702.0,0.04010778]
[1617337862788,2.377062,59703.0,59702.0,0.04010778]
[1617337862997,2.427062,59703.0,59702.0,0.04010778]
[1617337863587,3.075392,59703.0,59702.0,0.04010778]
[1617337864396,2.911392,59703.0,59702.0,0.04010778]
[1617337866827,2.427062,59703.0,59702.0,0.04010778]
[1617337867229,2.44454828,59703.0,59702.0,0.04010778]
[1617337867628,0.45454828,59703.0,59702.0,0.04010778]
[1617337868029,2.027691,59703.0,59702.0,0.04010778]
[1617337868234,2.027691,59703.0,59702.0,0.03510778]
[1617337868430,2.20719873,59703.0,59702.0,0.03510778]
[1617337869258,2.2576168,59703.0,59702.0,0.03510778]
[1617337870458,2.2526168,59703.0,59702.0,0.03510778]
[1617337871257,3.42256054,59703.0,59702.0,0.03510778]
[1617337871458,3.0226168,59703.0,59702.0,0.03510778]
[1617337871659,3.1856168,59703.0,59702.0,0.03510778]
[1617337873086,2.2526168,59703.0,59702.0,0.03510778]
[1617337873285,2.2476168,59703.0,59702.0,0.03510778]
[1617337873492,2.3326168,59703.0,59702.0,0.03510778]
[1617337873686,2.35757037,59703.0,59702.0,0.03510778]
[1617337873885,2.34757037,59703.0,59702.0,0.03510778]
[1617337874912,2.30757037,59703.0,59702.0,0.03510778]
[1617337876309,0.2,59702.0,59687.0,0.50271]
[1617337876512,0.33335865,59701.0,59690.0,0.0052]
[1617337876708,0.33335865,59701.0,59690.0,0.256776]
[1617337876911,0.227684,59699.0,59690.0,0.759376]
[1617337877132,0.02,59698.0,59690.0,0.759376]
[1617337877331,0.068548,59697.0,59690.0,0.759376]
[1617337877532,0.068548,59697.0,59690.0,0.754176]
[1617337877735,0.06854673,59700.0,59690.0,0.5026]
[1617337878134,0.06854673,59700.0,59690.0,0.50824096]
[1617337878738,0.227684,59699.0,59690.0,0.50824096]
[1617337878932,0.277684,59699.0,59690.0,0.50824096]
[1617337879137,0.06785625,59698.0,59690.0,0.50824096]
[1617337879334,0.07532436,59698.0,59690.0,0.50824096]
[1617337879766,0.06784022,59697.0,59690.0,0.50824096]
[1617337879963,0.08532652,59697.0,59690.0,0.50824096]
[1617337880373,0.06784415,59696.0,59690.0,0.50824096]
[1617337880570,2.799624,59691.0,59690.0,0.50824096]
[1617337880969,3.26260306,59691.0,59690.0,0.50824096]
[1617337881166,3.72960306,59691.0,59690.0,0.50824096]
[1617337881374,3.97960306,59691.0,59690.0,0.50824096]
[1617337881566,3.97960306,59691.0,59690.0,0.42600395]
[1617337881771,4.6195468,59691.0,59690.0,0.42600395]
[1617337881970,4.6195468,59691.0,59690.0,0.22846602]
[1617337882583,4.72321844,59691.0,59690.0,0.22846602]
[1617337884383,4.88321844,59691.0,59690.0,0.22846602]
[1617337884581,4.58321844,59691.0,59690.0,0.22846602]
[1617337884785,3.88321844,59691.0,59690.0,0.22846602]
[1617337885012,3.72668705,59691.0,59690.0,0.22846602]
[1617337885610,3.89891539,59691.0,59690.0,0.22846602]
[1617337885808,3.65897165,59691.0,59690.0,0.22846602]
[1617337886006,4.05891539,59691.0,59690.0,0.22846602]
[1617337886208,3.90417671,59691.0,59690.0,0.22846602]
[1617337886410,4.05888304,59691.0,59690.0,0.22846602]
[1617337886611,4.10888304,59691.0,59690.0,0.22846602]
[1617337886810,4.51588304,59691.0,59690.0,0.22846602]
[1617337887014,4.65996671,59691.0,59690.0,0.22846602]
[1617337887205,4.79210671,59691.0,59690.0,0.22846602]
[1617337887634,4.39216297,59691.0,59690.0,0.22846602]
[1617337887833,4.69216297,59691.0,59690.0,0.22846602]
[1617337888032,4.53216297,59691.0,59690.0,0.22846602]
[1617337888233,4.81216297,59691.0,59690.0,0.22846602]
[1617337888637,4.97216297,59691.0,59690.0,0.22846602]
[1617337889032,5.37210671,59691.0,59690.0,0.22846602]
[1617337891062,4.93210671,59691.0,59690.0,0.22846602]
[1617337891464,5.09210671,59691.0,59690.0,0.22846602]
[1617337893687,4.93210671,59691.0,59690.0,0.22846602]
[1617337894285,5.09210671,59691.0,59690.0,0.22846602]
[1617337894885,4.93210671,59691.0,59690.0,0.22846602]
[1617337895287,4.63210671,59691.0,59690.0,0.22846602]
[1617337895715,4.25210671,59691.0,59690.0,0.22846602]
[1617337895916,4.33631671,59691.0,59690.0,0.22846602]
[1617337896117,4.03631671,59691.0,59690.0,0.22846602]
[1617337896312,4.03631671,59691.0,59690.0,0.1296815]
[1617337896713,2.87631671,59691.0,59690.0,0.1296815]
[1617337897123,0.251663,59685.0,59668.0,0.03]
[1617337897316,1.51788305,59676.0,59675.0,0.0084]
[1617337897516,1.74556705,59676.0,59675.0,0.0084]
[1617337897716,0.11848881,59676.0,59675.0,0.51119]
[1617337898141,0.05788305,59676.0,59675.0,0.51119]
[1617337898340,0.05788305,59676.0,59675.0,0.50279]
[1617337899142,0.31182861,59681.0,59675.0,0.50279]
[1617337899340,0.28783924,59680.0,59675.0,0.50279]
[1617337899543,1.58786339,59676.0,59675.0,0.50279]
[1617337899745,2.03869859,59676.0,59675.0,0.50279]
[1617337900142,0.50869859,59676.0,59675.0,0.50279]
[1617337901562,0.34570695,59676.0,59675.0,0.50279]
[1617337902366,0.34570695,59676.0,59675.0,1.45579]
[1617337902564,0.11802295,59676.0,59675.0,1.45579]
[1617337902761,0.11802295,59676.0,59675.0,1.842892]
[1617337902963,0.11802295,59676.0,59675.0,0.889892]
[1617337903166,0.05786531,59677.0,59675.0,0.889892]
[1617337903386,0.05786531,59677.0,59676.0,1.340102]
[1617337903387,0.035,59677.0,59676.0,1.340102]
[1617337903589,0.035,59680.0,59675.0,0.50279]
[1617337903780,0.035,59680.0,59676.0,0.50279]
[1617337903982,0.035,59680.0,59676.0,1.45579]
[1617337904186,0.035,59680.0,59677.0,0.437102]
[1617337904382,0.035,59680.0,59677.0,1.892892]
[1617337904587,0.035,59680.0,59677.0,0.939892]
[1617337904790,0.18988411,59680.0,59677.0,0.55279]
[1617337905186,0.06038978,59679.0,59677.0,0.55279]
[1617337905386,0.035,59678.0,59677.0,0.55279]
[1617337905598,0.09538961,59678.0,59677.0,0.939892]
[1617337906418,0.09538961,59678.0,59677.0,1.892892]
[1617337906818,0.09538961,59678.0,59677.0,0.939892]
[1617337907020,0.09538961,59678.0,59677.0,4.982892]
[1617337907224,0.09538961,59678.0,59677.0,5.180892]
[1617337907424,0.09538961,59678.0,59677.0,2.49083574]
[1617337907626,0.09538961,59678.0,59677.0,2.99918821]
[1617337908020,0.09538961,59678.0,59677.0,4.35918821]
[1617337908425,0.09538961,59678.0,59677.0,2.99918821]
[1617337908843,0.09538961,59678.0,59677.0,3.02918821]
[1617337909840,0.09538961,59678.0,59677.0,2.78118821]
[1617337910045,0.09538961,59678.0,59677.0,1.42824447]
[1617337910642,0.10285978,59678.0,59677.0,1.42824447]
[1617337910841,0.10285978,59678.0,59677.0,1.39824447]
[1617337911869,0.10285978,59678.0,59677.0,1.42824447]
[1617337912472,0.10285978,59678.0,59677.0,2.38124447]
[1617337912672,0.10285978,59678.0,59677.0,2.78118821]
[1617337912872,0.10285978,59678.0,59677.0,2.38124447]
[1617337913891,0.10285978,59678.0,59677.0,2.92067821]
[1617337914091,0.10285978,59678.0,59677.0,2.52073447]
[1617337914294,0.10285978,59678.0,59677.0,1.56773447]
[1617337914499,0.10285978,59678.0,59677.0,1.53773447]
[1617337914696,0.29946273,59707.0,59677.0,1.53773447]
[1617337914697,0.29860652,59698.0,59678.0,1.01]
[1617337914896,0.81413525,59714.0,59678.0,1.01]
[1617337914897,0.251629,59689.0,59678.0,0.99279]
[1617337915096,0.01749032,59685.0,59679.0,0.9278]
[1617337915296,0.01749032,59685.0,59679.0,1.43479]
[1617337915498,0.05804981,59683.0,59679.0,1.43479]
[1617337916518,0.05804981,59683.0,59679.0,1.43059]
[1617337916720,0.05804981,59683.0,59680.0,0.387102]
[1617337916919,0.05804981,59683.0,59680.0,0.889892]
[1617337917115,0.05804981,59683.0,59680.0,0.50279]
[1617337917318,0.05804621,59682.0,59680.0,0.50699]
[1617337917518,0.05803176,59681.0,59680.0,0.50699]
[1617337917717,0.05803176,59681.0,59680.0,0.50279]
[1617337917919,0.05803176,59681.0,59680.0,0.889892]
[1617337918317,0.05803176,59681.0,59680.0,0.50279]
[1617337918717,0.05059501,59690.0,59680.0,0.50279]
[1617337918920,0.251651,59686.0,59680.0,0.50843213]
[1617337919141,0.301651,59686.0,59680.0,0.50843213]
[1617337919345,0.35175147,59686.0,59680.0,0.50843213]
[1617337921249,0.159,59684.0,59680.0,0.50843213]
[1617337921451,0.05,59684.0,59680.0,0.90837587]
[1617337921672,0.10210047,59686.0,59680.0,0.90837587]
[1617337921872,0.25167,59683.0,59680.0,0.90837587]
[1617337922072,0.30167,59683.0,59680.0,0.90837587]
[1617337922471,0.30167,59683.0,59680.0,0.45595974]
[1617337922875,0.30167,59683.0,59680.0,0.44390155]
[1617337923281,0.05,59683.0,59680.0,0.44390155]
[1617337923476,0.09720148,59703.0,59681.0,0.5]
[1617337923675,0.05,59690.0,59680.0,0.44390155]
[1617337923876,0.002,59691.0,59681.0,0.00303724]
[1617337924077,0.002,59691.0,59681.0,0.44830155]
[1617337924297,0.002,59693.0,59683.0,0.0044]
[1617337924498,0.002,59698.0,59684.0,0.00303724]
[1617337924696,0.251626,59695.0,59687.0,0.0056]
[1617337924893,0.251626,59695.0,59687.0,0.00256276]
[1617337925095,0.251626,59695.0,59682.0,0.00303724]
[1617337925494,0.301626,59695.0,59682.0,0.00303724]
[1617337925696,0.002,59694.0,59681.0,0.44790155]
[1617337926495,0.002,59694.0,59681.0,0.84384529]
[1617337926697,0.002,59694.0,59683.0,0.0046]
[1617337927123,0.251619,59696.0,59683.0,0.0044]
[1617337927524,0.127813,59698.0,59683.0,0.251607]
[1617337927724,0.127813,59698.0,59684.0,0.04]
[1617337927925,0.127813,59698.0,59684.0,0.04303724]
[1617337928328,0.127813,59698.0,59684.0,0.00303724]
[1617337928525,0.127813,59698.0,59683.0,0.39994374]
[1617337928724,0.05,59697.0,59683.0,0.40394374]
[1617337928924,0.05,59697.0,59683.0,0.004]
[1617337929331,0.251633,59692.0,59683.0,0.004]
[1617337929545,0.301633,59692.0,59683.0,0.004]
[1617337929754,0.301633,59692.0,59681.0,0.79375115]
[1617337929755,0.05,59692.0,59681.0,0.79375115]
[1617337929951,0.05,59692.0,59681.0,0.73526779]
[1617337929952,0.07263,59692.0,59681.0,0.73526779]
[1617337930152,1.05389927,59691.0,59681.0,0.44390155]
[1617337930351,0.377483,59688.0,59681.0,0.44390155]
[1617337930549,0.227684,59684.0,59681.0,0.44390155]
[1617337930748,1.767684,59682.0,59681.0,0.44390155]
[1617337930945,2.067684,59682.0,59681.0,0.44390155]
[1617337931148,2.04213627,59682.0,59681.0,0.44390155]
[1617337931746,2.29383627,59682.0,59681.0,0.44390155]
[1617337931947,0.75383627,59682.0,59681.0,0.44390155]
[1617337932373,0.58990981,59682.0,59681.0,0.44390155]
[1617337932772,1.47990981,59682.0,59681.0,0.44390155]
[1617337933172,1.64388456,59682.0,59681.0,0.44390155]
[1617337933373,0.75388456,59682.0,59681.0,0.44390155]
[1617337933777,1.3217,59682.0,59681.0,0.44390155]
[1617337934177,1.3217,59682.0,59681.0,0.40769667]
[1617337934178,1.7917,59682.0,59681.0,0.40769667]
[1617337934376,0.40862782,59682.0,59681.0,0.40417489]
[1617337934804,1.7917,59682.0,59681.0,0.40417489]
[1617337935202,1.99863039,59682.0,59681.0,0.40417489]
[1617337935403,0.45863039,59682.0,59681.0,0.40417489]
[1617337935606,0.40863039,59682.0,59681.0,0.40417489]
[1617337935803,0.2517,59682.0,59681.0,0.40417489]
[1617337936412,0.2467,59682.0,59681.0,0.40417489]
[1617337936605,1.79416967,59682.0,59681.0,0.39417489]
[1617337936804,1.84416967,59682.0,59681.0,0.39417489]
[1617337937006,2.00145779,59682.0,59681.0,0.39417489]
[1617337938045,0.46145779,59682.0,59681.0,0.39417489]
[1617337938248,0.30416967,59682.0,59681.0,0.39417489]
[1617337939846,0.30416967,59682.0,59681.0,0.38917489]
[1617337939847,1.84416967,59682.0,59681.0,0.38917489]
[1617337940247,1.97969951,59682.0,59681.0,0.38917489]
[1617337941047,2.27969951,59682.0,59681.0,0.38917489]
[1617337941845,1.97969951,59682.0,59681.0,0.38917489]
[1617337942050,1.06969951,59682.0,59681.0,0.38917489]
[1617337942447,0.93416967,59682.0,59681.0,0.38917489]
[1617337942871,0.88416967,59682.0,59681.0,0.38917489]
[1617337943672,1.73416967,59682.0,59681.0,0.38917489]
[1617337944073,2.21970813,59682.0,59681.0,0.38917489]
[1617337944472,1.36970813,59682.0,59681.0,0.38917489]
[1617337944675,1.23416967,59682.0,59681.0,0.38917489]
[1617337944873,0.60416967,59682.0,59681.0,0.38917489]
[1617337945074,0.30416967,59682.0,59681.0,0.38917489]
[1617337945296,0.05746967,59682.0,59681.0,0.38917489]
[1617337945699,0.00746967,59682.0,59681.0,0.38917489]
[1617337946101,1.54746967,59682.0,59681.0,0.38417489]
[1617337946296,0.00746967,59682.0,59681.0,0.38417489]
[1617337948118,0.00746967,59682.0,59681.0,0.37917489]
[1617337948719,0.00746967,59682.0,59681.0,0.76634889]
[1617337949940,0.00746967,59682.0,59681.0,1.71934889]
[1617337950744,0.00746967,59682.0,59681.0,0.76634889]
[1617337951541,0.00746967,59682.0,59681.0,1.38634889]
[1617337951748,0.00746967,59682.0,59681.0,2.33934889]
[1617337952343,0.00746967,59682.0,59681.0,1.67771513]
[1617337952542,0.00746967,59682.0,59681.0,1.38634889]
[1617337953569,0.00746967,59682.0,59681.0,3.21934889]
[1617337953872,0.00746967,59682.0,59681.0,3.70971513]
[1617337954070,0.00746967,59682.0,59681.0,1.92671513]
[1617337954274,0.00746967,59682.0,59681.0,1.21671513]
[1617337954472,0.00746967,59682.0,59681.0,0.92534889]
[1617337955472,0.00746967,59682.0,59681.0,0.76634889]
[1617337958301,0.00746967,59682.0,59681.0,0.80634889]
[1617337958529,0.00746967,59682.0,59681.0,1.81634889]
[1617337958729,0.00746967,59682.0,59681.0,0.80634889]
[1617337959525,0.00746967,59682.0,59681.0,1.45634889]
[1617337959728,0.00746967,59682.0,59681.0,0.76634889]
[1617337961157,0.0654244,59682.0,59681.0,0.37917489]
[1617337961755,0.0654244,59682.0,59681.0,0.76634889]
[1617337962156,0.00746967,59682.0,59681.0,0.76634889]
[1617337963357,0.00746967,59682.0,59681.0,0.37917489]
[1617337963561,0.01646967,59682.0,59681.0,0.37917489]
[1617337963773,0.07441986,59682.0,59681.0,0.37917489]
[1617337964376,0.06541986,59682.0,59681.0,1.02634889]
[1617337964575,0.00746967,59682.0,59681.0,0.76634889]
[1617337964786,0.01646967,59682.0,59681.0,0.76634889]
[1617337965790,0.00746967,59682.0,59681.0,0.76934889]
[1617337965991,0.01646967,59682.0,59681.0,1.92634889]
[1617337966193,0.01646967,59682.0,59681.0,0.97334889]
[1617337966396,0.01646967,59682.0,59681.0,1.74334889]
[1617337966601,0.01646967,59682.0,59681.0,1.77334889]
[1617337966995,0.01646967,59682.0,59681.0,1.76834889]
[1617337967195,0.01646967,59682.0,59681.0,2.05971513]
[1617337967400,0.01646967,59682.0,59681.0,1.28971513]
[1617337967598,0.01646967,59682.0,59681.0,0.92834889]
[1617337967799,0.01646967,59682.0,59681.0,0.76434889]
[1617337968202,0.01646967,59682.0,59681.0,0.96234889]
[1617337968401,0.01646967,59682.0,59681.0,0.92234889]
[1617337968605,0.01646967,59682.0,59681.0,0.37717489]
[1617337970026,0.00746967,59682.0,59681.0,0.37717489]
[1617337970828,0.01646967,59682.0,59681.0,0.37717489]
[1617337971232,0.00746967,59682.0,59681.0,0.37717489]
[1617337971652,0.00746967,59682.0,59681.0,0.76434889]
[1617337972053,0.01546967,59682.0,59681.0,0.76434889]
[1617337972650,0.01546967,59682.0,59681.0,0.66854113]
[1617337972852,0.01546967,59682.0,59681.0,0.37717489]
[1617337973054,0.01546967,59682.0,59681.0,0.76434889]
[1617337973255,0.01546967,59682.0,59681.0,0.66854113]
[1617337973656,0.01546967,59682.0,59681.0,0.37717489]
[1617337974472,0.01546967,59682.0,59681.0,0.76434889]
[1617337975676,0.01546967,59682.0,59681.0,1.05571513]
[1617337976902,0.01546967,59682.0,59681.0,0.66854113]
[1617337977108,0.01546967,59682.0,59681.0,0.37717489]
[1617337978504,0.00746967,59682.0,59681.0,0.37717489]
[1617337980414,0.00746967,59682.0,59681.0,0.76434889]
[1617337980619,0.00746967,59682.0,59681.0,1.05571513]
[1617337981418,0.00746967,59682.0,59681.0,0.66854113]
[1617337981615,0.00746967,59682.0,59681.0,0.37717489]
[1617337982253,0.04244755,59682.0,59681.0,0.37717489]
[1617337982657,0.06044755,59682.0,59681.0,0.76434889]
[1617337982852,0.06044755,59682.0,59681.0,0.37717489]
[1617337983457,0.06044755,59682.0,59681.0,0.76434889]
[1617337984055,0.06044755,59682.0,59681.0,0.37717489]
[1617337985279,0.05044755,59682.0,59681.0,0.37717489]
[1617337988907,0.018,59682.0,59681.0,0.37717489]
[1617337989307,0.017,59686.0,59681.0,0.37717489]
[1617337990929,0.017,59686.0,59681.0,0.37967489]
[1617337992334,0.047,59686.0,59681.0,0.37967489]
[1617337992752,0.298667,59686.0,59681.0,0.37967489]
[1617337992950,0.045,59685.0,59681.0,0.37967489]
[1617337993152,0.04171546,59684.0,59681.0,0.37967489]